[Event "WYCC 2018 O16"]
[Site "Halkidiki"]
[Date "2018.10.22"]
[Round "4"]
[White "Talukdar, Rohan"]
[Black "Triantos, Konstantinos"]
[Result "1-0"]
[ECO "B90"]
[WhiteElo "2279"]
[BlackElo "2002"]
[Annotator "NA"]
[PlyCount "91"]
[EventDate "2018.10.20"]
[EventType "swiss"]
[EventCountry "GRE"]
[SourceTitle "playchess.com"]
[Source "ChessBase"]
[SourceQuality "1"]
[TimeControl "40/5400+30:1800+30"]

1. e4 {[%emt 0:00:00]} c5 {[%emt 0:00:00]} 2. Nf3 {[%emt 0:00:00]} d6 {[%emt 0:00:00]} 3. d4 {[%emt 0:00:00]} cxd4 {[%emt 0:00:00]} 4. Nxd4 {[%emt 0:00:00]} Nf6 {[%emt 0:00:00]} 5. Nc3 {[%emt 0:00:00]} a6 {[%emt 0:00:00]} 6. Be3 {[%emt 0:00:24]} e5 {[%emt 0:01:05]} 7. Nb3 {[%emt 0:00:18]} Be7 {[%emt 0:07:41]} 8. f3 {[%emt 0:00:15]} Be6 {[%emt 0:00:33]} 9. Qd2 {[%emt 0:00:32]} Nbd7 {[%emt 0:00:42]} 10. g4 {[%emt 0:01:35]} O-O {[%emt 0:02:08]} 11. O-O-O {[%emt 0:00:53]} b5 {[%emt 0:00:15]} 12. g5 {[%emt 0:00:43]} b4 {[%emt 0:00:37]} 13. Ne2 {[%emt 0:07:26]} Ne8 {[%emt 0:00:16]} 14. f4 {[%emt 0:00:48]} a5 {[%emt 0:00:16] LiveBook: 781 Games} 15. f5 {[%emt 0:00:10]} Bxb3 {[%emt 0:00:08]} 16. cxb3 {[%emt 0:01:35]} a4 {[%emt 0:00:09]} 17. bxa4 {[%emt 0:00:08]} Rxa4 {[%emt 0:00:25]} 18. Kb1 {[%emt 0:00:04]} Rxa2 {[%emt 0:00:11]} 19. Nc1 {[%emt 0:00:01]} Ra8 {[%emt 0:23:34]} 20. Nb3 {[%emt 0:01:29]} Qb8 {[%emt 0:20:16]} 21. Bc4 {[%emt 0:10:16]} Nb6 {[%emt 0:10:38]} 22. Bxb6 {[%emt 0:16:49]} Qxb6 {[%emt 0:00:07]} 23. h4 {[%emt 0:06:24]} Qa7 {[%emt 0:07:07]} 24. Rh3 {[%emt 0:11:18]} Qa2+ {[%emt 0:03:11]} 25. Kc2 {[%emt 0:01:27]} Rc8 {[%emt 0:06:19]} 26. Ra1 {[%emt 0:03:50]} Rxc4+ {[%emt 0:00:10]} 27. Kd1 {[%emt 0:00:05]} Qxa1+ {[%emt 0:00:09]} 28. Nxa1 {[%emt 0:00:03]} Rxe4 {[%emt 0:02:39]} 29. Nc2 {[%emt 0:03:02]} d5 {[%emt 0:08:04]} 30. Qxd5 {[%emt 0:03:47]} Nd6 {[%emt 0:00:02]} 31. Re3 {[%emt 0:07:58]} Rd8 {[%emt 0:02:11]} 32. Ke1 {[%emt 0:00:05]} b3 {[%emt 0:04:00]} 33. Qxb3 {[%emt 0:07:54]} Rxh4 {[%emt 0:00:13]} 34. g6 {[%emt 0:00:01]} Bf6 {[%emt 0:02:20]} 35. Rd3 {[%emt 0:01:14]} hxg6 {[%emt 0:01:20]} 36. fxg6 {[%emt 0:00:00]} Rf4 {[%emt 0:00:21]} 37. Ne3 {[%emt 0:03:20]} Rd4 {[%emt 0:00:46]} 38. Rc3 {[%emt 0:00:59]} Ne4 {[%emt 0:00:31]} 39. Qxf7+ {[%emt 0:04:13]} Kh8 {[%emt 0:00:01]} 40. Rc2 {[%emt 0:00:00]} Bh4+ {[%emt 0:00:00]} 41. Kf1 {[%emt 0:02:21]} Nd2+ {[%emt 0:12:35]} 42. Ke2 {[%emt 0:08:59]} Bg5 {[%emt 0:15:39]} 43. Rc7 {[%emt 0:04:28]} Bf6 {[%emt 0:00:19]} 44. Qe6 {[%emt 0:01:30]} Rh4 {[%emt 0:04:29]} 45. Rc8 {[%emt 0:02:44]} Rhd4 {[%emt 0:00:24]} 46. Qe8+ {[%emt 0:00:09]} 1-0

[Event "WYCC 2018 O16"]
[Site "Halkidiki"]
[Date "2018.10.22"]
[Round "4"]
[White "Peng, Hongchi"]
[Black "Schitco, Ivan"]
[Result "0-1"]
[ECO "B00"]
[WhiteElo "2273"]
[BlackElo "2376"]
[Annotator "NA"]
[PlyCount "72"]
[EventDate "2018.10.20"]
[EventType "swiss"]
[EventCountry "GRE"]
[SourceTitle "playchess.com"]
[Source "ChessBase"]
[SourceQuality "1"]
[TimeControl "40/5400+30:1800+30"]

1. e4 {[%emt 0:00:00]} d6 {[%emt 0:00:00]} 2. d4 {[%emt 0:00:00]} Nf6 {[%emt 0:00:00]} 3. f3 {[%emt 0:00:42]} c6 {[%emt 0:05:55]} 4. c4 {[%emt 0:01:56]} e5 {[%emt 0:02:13]} 5. Nc3 {[%emt 0:00:58]} Nbd7 {[%emt 0:00:57]} 6. Be3 {[%emt 0:01:12]} Be7 {[%emt 0:01:20]} 7. Qd2 {[%emt 0:01:25]} O-O {[%emt 0:00:53]} 8. g4 {[%emt 0:04:38]} exd4 {[%emt 0:09:16]} 9. Qxd4 {[%emt 0:02:43]} (9. Bxd4 $11 {remains equal.} Ne5 10. Be2) 9... a6 {[%emt 0:11:48]} 10. g5 {[%emt 0:05:26]} Nh5 {[%emt 0:04:08]} 11. f4 {[%emt 0:02:16]} Nc5 {[%emt 0:01:41]} 12. Qd2 {[%emt 0:12:56]} f5 {[%emt 0:12:08]} 13. Be2 {[%emt 0:09:41]} Qe8 {[%emt 0:01:44]} 14. Qd1 {[%emt 0:02:04]} Nxf4 {[%emt 0:19:16]} 15. Bxf4 {[%emt 0:00:15]} fxe4 {[%emt 0:00:04]} 16. Qd2 {[%emt 0:05:03]} Bg4 {[%emt 0:01:10]} 17. Be3 $19 {[%emt 0:08:15]} (17. O-O-O $17 {only move.} Bxe2 18. Ngxe2 Nd3+ 19. Kb1 Nxf4 20. Nxf4 Bxg5 21. Rhf1) 17... Nd3+ {[%emt 0:02:00]} 18. Bxd3 {[%emt 0:02:16]} exd3 {[%emt 0:00:07]} 19. h4 {[%emt 0:00:02]} d5 {[%emt 0:02:35]} 20. Qxd3 {[%emt 0:01:36]} Bc5 {[%emt 0:01:19]} 21. Nxd5 {[%emt 0:00:09]} Qe5 {[%emt 0:05:26]} 22. Ne2 {[%emt 0:03:24]} Rf3 {[%emt 0:03:06]} 23. Rf1 {[%emt 0:07:12]} Bb4+ {[%emt 0:08:29]} 24. Nec3 {[%emt 0:00:10]} cxd5 {[%emt 0:00:43]} 25. Rxf3 {[%emt 0:03:20]} Bxf3 {[%emt 0:00:01]} 26. Qd4 {[%emt 0:01:13]} Qh2 {[%emt 0:01:01]} 27. Bf2 {[%emt 0:00:13]} Re8+ {[%emt 0:00:11]} 28. Kd2 {[%emt 0:00:09]} Re2+ {[%emt 0:00:11]} 29. Kd3 {[%emt 0:00:31]} Qxf2 {[%emt 0:00:49]} 30. Qxf2 {[%emt 0:00:11]} Rxf2 {[%emt 0:00:10]} 31. Nxd5 {[%emt 0:00:50]} Rd2+ {[%emt 0:00:15]} 32. Ke3 {[%emt 0:00:15]} Bxd5 {[%emt 0:00:08]} 33. cxd5 {[%emt 0:00:06]} Rxd5 {[%emt 0:00:06]} 34. Ke4 {[%emt 0:00:05]} Rd2 {[%emt 0:00:27]} 35. b3 {[%emt 0:00:13]} Re2+ {[%emt 0:00:07]} 36. Kd5 {[%emt 0:00:19]} Re1 {[%emt 0:00:06]} 0-1

[Event "WYCC 2018 O16"]
[Site "Halkidiki"]
[Date "2018.10.22"]
[Round "4"]
[White "Thilakarathne, G M H"]
[Black "Teclaf, Pawel"]
[Result "1/2-1/2"]
[ECO "B41"]
[WhiteElo "2268"]
[BlackElo "2384"]
[Annotator "NA"]
[PlyCount "34"]
[EventDate "2018.10.20"]
[EventType "swiss"]
[EventCountry "GRE"]
[SourceTitle "playchess.com"]
[Source "ChessBase"]
[SourceQuality "1"]
[TimeControl "40/5400+30:1800+30"]

1. e4 {[%emt 0:00:00]} c5 {[%emt 0:00:00]} 2. Nf3 {[%emt 0:00:00]} e6 {[%emt 0:00:00]} 3. d4 {[%emt 0:00:09]} cxd4 {[%emt 0:00:00]} 4. Nxd4 {[%emt 0:00:07]} a6 {[%emt 0:00:00]} 5. c4 {[%emt 0:00:28]} Nf6 {[%emt 0:00:00]} 6. Nc3 {[%emt 0:00:08]} Bb4 {[%emt 0:00:04]} 7. Qd3 {[%emt 0:00:21]} O-O {[%emt 0:00:25]} 8. Be2 {[%emt 0:06:06]} d6 {[%emt 0:06:47]} 9. Nc2 {[%emt 0:06:16]} Bxc3+ $11 {[%emt 0:11:33]} 10. bxc3 {[%emt 0:00:16]} Nbd7 {[%emt 0:04:25]} 11. Ba3 {[%emt 0:26:40]} Nc5 {[%emt 0:06:03]} 12. Bxc5 {[%emt 0:00:17]} dxc5 {[%emt 0:00:04]} 13. e5 {[%emt 0:01:53]} Qxd3 {[%emt 0:12:09]} 14. Bxd3 {[%emt 0:00:30]} Nd7 {[%emt 0:00:04]} 15. f4 {[%emt 0:00:10]} f6 {[%emt 0:00:13]} 16. exf6 {[%emt 0:01:02]} Nxf6 {[%emt 0:00:22]} 17. O-O-O {[%emt 0:14:49]} Ng4 {[%emt 0:19:23]} 1/2-1/2

[Event "WYCC 2018 O16"]
[Site "Halkidiki"]
[Date "2018.10.22"]
[Round "4"]
[White "Nielsen, Andre"]
[Black "Shubin, Kirill"]
[Result "1/2-1/2"]
[ECO "C16"]
[WhiteElo "2260"]
[BlackElo "2369"]
[Annotator "NA"]
[PlyCount "99"]
[EventDate "2018.10.20"]
[EventType "swiss"]
[EventCountry "GRE"]
[SourceTitle "playchess.com"]
[Source "ChessBase"]
[SourceQuality "1"]
[TimeControl "40/5400+30:1800+30"]

1. e4 {[%emt 0:00:00]} e6 {[%emt 0:00:00]} 2. d4 {[%emt 0:00:00]} d5 {[%emt 0:00:00]} 3. Nc3 {[%emt 0:00:00]} Bb4 {[%emt 0:00:00]} 4. e5 {[%emt 0:00:10]} b6 {[%emt 0:00:00]} 5. Qg4 {[%emt 0:01:29]} Bf8 {[%emt 0:00:00]} 6. Bg5 {[%emt 0:01:12]} Qd7 {[%emt 0:00:00]} 7. O-O-O {[%emt 0:03:34]} h6 {[%emt 0:00:25]} 8. Be3 {[%emt 0:02:16] C16: Französische Verteidigung (Nimzowitsch-Variante)} Ba6 {[%emt 0:00:20]} 9. Nge2 {[%emt 0:08:43]} Ne7 $146 {[%emt 0:00:17]} ({Vorgänger:} 9... Nc6 10. f4 O-O-O 11. Qf3 Na5 12. g4 h5 13. h3 g6 14. Kb1 Ne7 15. b3 {½-½ (26) Hjartarson,J (2640)-Berezovsky,I (2444) Germany 2003}) 10. Ng3 {[%emt 0:01:41]} Bxf1 {[%emt 0:00:33]} 11. Rhxf1 {[%emt 0:00:25]} Nbc6 {[%emt 0:04:17]} 12. Kb1 {[%emt 0:06:48]} Na5 {[%emt 0:00:57]} 13. Bc1 {[%emt 0:04:13]} O-O-O {[%emt 0:11:23]} 14. Qf3 {[%emt 0:10:31]} Qe8 {[%emt 0:00:18]} 15. b3 {[%emt 0:04:22]} Nb7 {[%emt 0:04:05]} 16. Nh5 {[%emt 0:08:49]} Kb8 {[%emt 0:05:55]} 17. Qe2 {[%emt 0:02:47]} Rc8 {[%emt 0:05:32]} 18. f4 {[%emt 0:03:08]} c5 {[%emt 0:08:12]} 19. Bb2 {[%emt 0:01:11]} c4 {[%emt 0:18:01]} 20. g4 $14 {[%emt 0:07:05]} Nc6 {[%emt 0:05:55]} 21. f5 {[%emt 0:04:37]} Nca5 {[%emt 0:01:21]} 22. Rf3 {[%emt 0:00:42]} g6 {[%emt 0:01:12]} 23. Nf4 {[%emt 0:02:11]} Bb4 {[%emt 0:03:18]} 24. Qe3 {[%emt 0:01:25]} Bxc3 {[%emt 0:02:17]} 25. Bxc3 {[%emt 0:00:38]} cxb3 {[%emt 0:00:41]} 26. axb3 {[%emt 0:02:27]} gxf5 {[%emt 0:01:03]} 27. gxf5 {[%emt 0:00:20]} Qc6 {[%emt 0:00:46]} 28. fxe6 {[%emt 0:02:10]} fxe6 {[%emt 0:00:02]} 29. Ng6 {[%emt 0:00:55]} Rh7 {[%emt 0:00:36]} 30. Rd2 {[%emt 0:04:22]} Rhc7 {[%emt 0:06:23]} 31. Bb4 {[%emt 0:01:37]} Qb5 {[%emt 0:00:55]} 32. Bd6 Nxd6 {[%emt 0:02:39]} 33. exd6 {[%emt 0:01:13]} Rd7 {[%emt 0:00:15]} 34. Qxh6 {[%emt 0:06:13]} Rxd6 {[%emt 0:02:52]} 35. Rf8 {[%emt 0:02:04]} Rd7 {[%emt 0:05:31]} 36. Ne5 {[%emt 0:01:07]} Rdc7 {[%emt 0:01:51]} 37. Rxc8+ {[%emt 0:00:39]} Rxc8 {[%emt 0:00:04]} 38. Qxe6 {[%emt 0:05:01]} Nxb3 {[%emt 0:01:13]} 39. Qd6+ {[%emt 0:00:41]} Kb7 {[%emt 0:00:14]} 40. cxb3 {[%emt 0:00:00]} Qxb3+ {[%emt 0:00:00]} 41. Rb2 {[%emt 0:01:00]} Qd1+ {[%emt 0:00:09]} 42. Ka2 {[%emt 0:00:20]} Qxd4 {[%emt 0:00:07]} 43. Rg2 {[%emt 0:21:04]} Rc7 {[%emt 0:07:06]} 44. h4 {[%emt 0:01:26]} Qa4+ {[%emt 0:03:43]} 45. Qa3 {[%emt 0:04:41]} Qxh4 {[%emt 0:00:32]} 46. Nd3 {[%emt 0:02:00]} Qd4 {[%emt 0:00:15]} 47. Rb2 {[%emt 0:01:21]} a5 {[%emt 0:01:11]} 48. Rb3 {[%emt 0:00:38]} Rc2+ {[%emt 0:01:38]} 49. Nb2 {[%emt 0:00:40]} Ka6 {[%emt 0:01:13]} 50. Rxb6+ {[%emt 0:00:54]} 1/2-1/2

[Event "WYCC 2018 O16"]
[Site "Halkidiki"]
[Date "2018.10.22"]
[Round "4"]
[White "Mukhutdinov, Tigran"]
[Black "Guerra Rivera, Salvador"]
[Result "1-0"]
[ECO "B23"]
[WhiteElo "2256"]
[BlackElo "2340"]
[Annotator "NA"]
[PlyCount "89"]
[EventDate "2018.10.20"]
[EventType "swiss"]
[EventCountry "GRE"]
[SourceTitle "playchess.com"]
[Source "ChessBase"]
[SourceQuality "1"]
[TimeControl "40/5400+30:1800+30"]

1. e4 {[%emt 0:00:00]} c5 {[%emt 0:00:00]} 2. Nc3 {[%emt 0:00:39]} g6 {[%emt 0:01:42]} 3. f4 {[%emt 0:01:35]} Bg7 {[%emt 0:02:11]} 4. Nf3 {[%emt 0:00:53]} Nc6 {[%emt 0:01:05]} 5. Bc4 {[%emt 0:03:07]} e6 {[%emt 0:06:54]} 6. O-O {[%emt 0:06:29]} Nge7 {[%emt 0:01:37]} 7. d3 {[%emt 0:03:01]} d5 {[%emt 0:05:20]} 8. Bb3 {[%emt 0:08:57]} O-O {[%emt 0:01:41]} 9. Qe1 {[%emt 0:01:08]} a6 $11 {[%emt 0:10:30] LiveBook: 8 Games} 10. Qh4 {[%emt 0:14:39]} b5 {[%emt 0:18:51]} 11. f5 {[%emt 0:08:16]} dxe4 {[%emt 0:01:15]} 12. Ng5 {[%emt 0:10:28]} h6 {[%emt 0:06:58]} 13. f6 {[%emt 0:13:07]} hxg5 {[%emt 0:10:58]} 14. Bxg5 {[%emt 0:01:20]} Nf5 {[%emt 0:06:36]} 15. Rxf5 {[%emt 0:02:33]} gxf5 {[%emt 0:00:11]} 16. Kh1 {[%emt 0:05:33]} Qd4 {[%emt 0:02:27]} 17. Ne2 {[%emt 0:04:42]} Qxb2 {[%emt 0:00:45]} 18. Rf1 {[%emt 0:01:07]} e3 {[%emt 0:13:27]} 19. d4 {[%emt 0:01:20]} Bh8 {[%emt 0:00:32]} 20. Qg3 {[%emt 0:00:37]} Rd8 {[%emt 0:00:17]} 21. Bh6+ {[%emt 0:00:14]} Kh7 {[%emt 0:00:07]} 22. Bg7 {[%emt 0:00:37]} Kg8 {[%emt 0:01:49]} 23. Bxh8+ {[%emt 0:00:52]} Kf8 {[%emt 0:00:03]} 24. Qg7+ {[%emt 0:00:04]} Ke8 {[%emt 0:00:05]} 25. Qg8+ {[%emt 0:00:03]} Kd7 {[%emt 0:00:05]} 26. Qxf7+ {[%emt 0:00:19]} Kd6 {[%emt 0:00:04]} 27. Bg7 {[%emt 0:02:20]} Bd7 {[%emt 0:04:15]} 28. dxc5+ {[%emt 0:02:01]} Kxc5 {[%emt 0:00:15]} 29. Bh6 {[%emt 0:01:09]} Qe5 {[%emt 0:01:10]} 30. Bf4 {[%emt 0:00:06]} Qe4 {[%emt 0:01:47]} 31. Nc3 {[%emt 0:00:47]} Qd4 {[%emt 0:00:18]} 32. Ne2 {[%emt 0:01:37]} Qd2 {[%emt 0:00:09]} 33. Nc1 {[%emt 0:01:12]} e2 {[%emt 0:00:45]} 34. Rg1 {[%emt 0:00:30]} e1=Q {[%emt 0:01:17]} 35. Nd3+ {[%emt 0:00:12]} Qxd3 {[%emt 0:00:05]} 36. cxd3 {[%emt 0:00:03]} Qe2 {[%emt 0:01:04]} 37. Bc7 {[%emt 0:00:24]} Ne5 {[%emt 0:01:08]} 38. Qe7+ {[%emt 0:00:26]} Kc6 {[%emt 0:00:42]} 39. Qd6+ {[%emt 0:00:20]} Kb7 {[%emt 0:00:03]} 40. Qb6+ {[%emt 0:00:00]} Kc8 {[%emt 0:00:00]} 41. Bxd8 {[%emt 0:00:20]} Ra7 {[%emt 0:01:59]} 42. Qxa7 {[%emt 0:00:56]} Kxd8 43. Qb8+ {[%emt 0:00:07]} Bc8 {[%emt 0:00:04]} 44. Bxe6 {[%emt 0:00:37]} Nd7 {[%emt 0:00:50]} 45. Qd6 {[%emt 0:00:23]} 1-0

[Event "WYCC 2018 O16"]
[Site "Halkidiki"]
[Date "2018.10.22"]
[Round "4"]
[White "Juksta, Karolis"]
[Black "Morgunov, Daniel"]
[Result "1-0"]
[ECO "E20"]
[WhiteElo "2234"]
[BlackElo "2328"]
[Annotator "NA"]
[PlyCount "45"]
[EventDate "2018.10.20"]
[EventType "swiss"]
[EventCountry "GRE"]
[SourceTitle "playchess.com"]
[Source "ChessBase"]
[SourceQuality "1"]
[TimeControl "40/5400+30:1800+30"]

1. d4 {[%emt 0:00:00]} Nf6 {[%emt 0:00:00]} 2. c4 {[%emt 0:00:00]} e6 {[%emt 0:00:00]} 3. Nc3 {[%emt 0:00:00]} Bb4 {[%emt 0:00:00]} 4. f3 {[%emt 0:00:44]} d5 {[%emt 0:00:17]} 5. a3 {[%emt 0:00:06]} Bd6 {[%emt 0:00:10]} 6. e4 {[%emt 0:00:31]} c5 {[%emt 0:00:06]} 7. cxd5 {[%emt 0:18:40]} cxd4 {[%emt 0:01:00]} 8. Bb5+ {[%emt 0:13:28]} Bd7 {[%emt 0:00:38]} 9. Bxd7+ {[%emt 0:04:43]} Qxd7 {[%emt 0:02:17]} 10. Qxd4 {[%emt 0:00:14]} exd5 {[%emt 0:01:24]} (10... Nc6 $1 $11 {keeps the balance.} 11. Qd1 (11. dxc6 $2 Bg3+ 12. hxg3 Qxd4 $19) 11... exd5) 11. exd5 {[%emt 0:03:04]} (11. Nxd5 $16 Qe6 12. Nxf6+ gxf6 13. Ne2) 11... O-O {[%emt 0:07:43]} 12. Nge2 {[%emt 0:00:37]} Re8 {[%emt 0:20:04]} 13. O-O {[%emt 0:10:03]} Nxd5 {[%emt 0:12:44]} 14. Qxd5 {[%emt 0:07:19]} Rxe2 {[%emt 0:00:12]} 15. Rd1 {[%emt 0:00:24]} Re6 $18 {[%emt 0:01:42]} 16. Ne4 {[%emt 0:00:31]} Qe7 {[%emt 0:40:28]} 17. Bg5 {[%emt 0:06:06]} f6 {[%emt 0:02:06]} 18. Nxd6 {[%emt 0:01:45]} fxg5 {[%emt 0:00:47]} 19. Ne4 {[%emt 0:07:10]} Kh8 {[%emt 0:03:25]} 20. Nxg5 {[%emt 0:00:37]} Rf6 {[%emt 0:01:10]} 21. Qxb7 {[%emt 0:01:08]} Qc5+ {[%emt 0:03:05]} 22. Kh1 {[%emt 0:00:20]} Rf8 {[%emt 0:00:22]} 23. Ne6 {[%emt 0:00:43]} 1-0

[Event "WYCC 2018 O16"]
[Site "Halkidiki"]
[Date "2018.10.22"]
[Round "4"]
[White "Quirhuayo Chumbe, German Gonzalo"]
[Black "Golikov, Daniil"]
[Result "1-0"]
[ECO "B42"]
[WhiteElo "2220"]
[BlackElo "2319"]
[Annotator "NA"]
[PlyCount "53"]
[EventDate "2018.10.20"]
[EventType "swiss"]
[EventCountry "GRE"]
[SourceTitle "playchess.com"]
[Source "ChessBase"]
[SourceQuality "1"]
[TimeControl "40/5400+30:1800+30"]

1. e4 {[%emt 0:00:00]} c5 {[%emt 0:00:00]} 2. Nf3 {[%emt 0:00:00]} e6 {[%emt 0:00:00]} 3. d4 {[%emt 0:00:00]} cxd4 {[%emt 0:00:07]} 4. Nxd4 {[%emt 0:00:00]} a6 {[%emt 0:00:05]} 5. Bd3 {[%emt 0:00:07]} Qc7 {[%emt 0:00:27]} 6. O-O {[%emt 0:01:17]} Nf6 {[%emt 0:01:44]} 7. Nc3 {[%emt 0:01:07]} Nc6 {[%emt 0:03:07]} 8. Be3 {[%emt 0:05:31]} Ne5 {[%emt 0:00:12]} 9. h3 {[%emt 0:01:11]} Bc5 {[%emt 0:00:11]} 10. Kh1 {[%emt 0:06:38]} d6 {[%emt 0:02:50] B48: Sicilian: Taimanov: 5 Nc3 Qc7 6 Be3 a6 without Be2} 11. Nce2 {[%emt 0:08:22]} (11. f4 Ned7 12. Qd2 O-O 13. Rae1 b5 14. Nb3 Bxe3 15. Qxe3 Bb7 16. e5 dxe5 17. fxe5 Nd5 18. Nxd5 Bxd5 19. Rf4 Rae8 {0-1 (29) Lie,K (2509)-Swiercz,D (2631) Yerevan 2014}) 11... d5 {[%emt 0:03:43]} 12. f4 {[%emt 0:11:18]} Nc4 {[%emt 0:21:30]} 13. Bxc4 {[%emt 0:05:41]} dxc4 {[%emt 0:00:01]} 14. Nc3 {[%emt 0:03:07]} b5 $146 {[%emt 0:05:25]} ({Predecessor:} 14... Bb4 15. Qf3 b6 16. e5 Bb7 17. Qg3 Bxc3 18. bxc3 {0-1 (27) Mammadova,S (1836)-Yang,Y (1975) Khanty-Mansiysk 2016}) 15. e5 {[%emt 0:02:37]} Nd7 {[%emt 0:01:04]} 16. Qg4 {[%emt 0:02:59]} (16. f5 $5 {[%cal Rd4e6]} Nxe5 17. fxe6 $16) 16... g6 {[%emt 0:08:21]} 17. Nxe6 {[%emt 0:04:47]} Qc6 {[%emt 0:08:19]} 18. Nd4 {[%emt 0:09:33]} Bxd4 {[%emt 0:04:49]} 19. Bxd4 {[%emt 0:00:04]} Nc5 {[%emt 0:06:05]} 20. e6 {[%emt 0:02:17]} Bxe6 {[%emt 0:00:11]} 21. f5 {[%emt 0:01:03]} gxf5 {[%emt 0:00:41]} 22. Qf3 {[%emt 0:00:07]} Kd7 {[%emt 0:00:19]} 23. Bxc5 $18 {[%emt 0:01:29]} Qxc5 {[%emt 0:00:25]} 24. Qb7+ {[%emt 0:00:15]} Kd6 {[%emt 0:04:33]} 25. Rfe1 {[%emt 0:00:10]} Qc8 {[%emt 0:01:38]} 26. Rad1+ {[%emt 0:00:07]} Kc5 {[%emt 0:00:07]} 27. Re5+ {[%emt 0:00:04] Kd5} 1-0

[Event "WYCC 2018 O16"]
[Site "Halkidiki"]
[Date "2018.10.22"]
[Round "4"]
[White "Sargsyan, Tigran R."]
[Black "Sahidi, Samir"]
[Result "1-0"]
[ECO "A49"]
[WhiteElo "2218"]
[BlackElo "2315"]
[Annotator "NA"]
[PlyCount "111"]
[EventDate "2018.10.20"]
[EventType "swiss"]
[EventCountry "GRE"]
[SourceTitle "playchess.com"]
[Source "ChessBase"]
[SourceQuality "1"]
[TimeControl "40/5400+30:1800+30"]

1. d4 {[%emt 0:00:00]} Nf6 {[%emt 0:00:00]} 2. Nf3 {[%emt 0:00:22]} g6 {[%emt 0:00:37]} 3. g3 {[%emt 0:02:34]} Bg7 {[%emt 0:01:44]} 4. Bg2 {[%emt 0:00:37]} O-O {[%emt 0:01:07]} 5. O-O {[%emt 0:00:53]} d6 {[%emt 0:01:16]} 6. b3 {[%emt 0:04:17]} c6 {[%emt 0:05:31]} 7. Bb2 {[%emt 0:01:16]} Qc7 {[%emt 0:04:23]} 8. c4 {[%emt 0:03:25]} Re8 {[%emt 0:04:33]} 9. Nc3 {[%emt 0:05:49]} Bg4 {[%emt 0:02:06]} 10. e4 {[%emt 0:02:30]} Nbd7 {[%emt 0:13:28]} 11. h3 {[%emt 0:02:53]} Bxf3 {[%emt 0:00:06]} 12. Bxf3 {[%emt 0:00:59]} Nf8 {[%emt 0:06:24]} 13. Qd2 {[%emt 0:10:08]} N6d7 {[%emt 0:02:07]} 14. Rad1 {[%emt 0:05:16]} Ne6 {[%emt 0:02:36]} 15. Ne2 {[%emt 0:00:47]} Bf6 {[%emt 0:02:12]} 16. Bg2 {[%emt 0:02:58]} c5 $16 {[%emt 0:01:27]} 17. d5 {[%emt 0:00:53]} Ng7 {[%emt 0:00:36]} 18. f4 {[%emt 0:08:38]} Rab8 {[%emt 0:01:51]} 19. g4 {[%emt 0:03:04]} Bxb2 {[%emt 0:00:50]} 20. Qxb2 {[%emt 0:00:19]} b5 {[%emt 0:02:01]} 21. cxb5 {[%emt 0:00:42]} Rxb5 {[%emt 0:00:11]} 22. Qc3 {[%emt 0:07:11]} Qa5 {[%emt 0:01:19]} 23. Rd2 {[%emt 0:11:08]} Qxc3 {[%emt 0:08:28]} 24. Nxc3 {[%emt 0:00:05]} Ra5 {[%emt 0:00:29]} 25. e5 {[%emt 0:10:53]} Rb8 {[%emt 0:08:49]} 26. Re1 {[%emt 0:01:30]} Kf8 {[%emt 0:04:55]} 27. Rde2 {[%emt 0:01:35]} f5 {[%emt 0:04:42]} 28. exf6 {[%emt 0:02:33]} exf6 {[%emt 0:00:15]} 29. Re7 {[%emt 0:02:36]} Re8 {[%emt 0:00:57]} 30. Rxe8+ {[%emt 0:00:06]} Nxe8 {[%emt 0:00:07]} 31. Re6 {[%emt 0:01:21]} Kf7 {[%emt 0:01:37]} 32. Bf1 {[%emt 0:01:20]} Nf8 {[%emt 0:00:31]} 33. Re3 {[%emt 0:01:03]} Nc7 {[%emt 0:01:08]} 34. Bc4 {[%emt 0:00:51]} f5 {[%emt 0:00:45]} 35. a4 {[%emt 0:00:46]} Nd7 {[%emt 0:02:43]} 36. Re6 {[%emt 0:01:34]} fxg4 {[%emt 0:02:23]} 37. hxg4 {[%emt 0:00:13]} Nb6 {[%emt 0:02:49]} 38. Rxd6 {[%emt 0:00:26]} Nxc4 {[%emt 0:00:39]} 39. Rd7+ {[%emt 0:00:22]} Ke8 {[%emt 0:01:12]} 40. Rxc7 {[%emt 0:00:00]} Nd2 {[%emt 0:00:00]} 41. d6 {[%emt 0:01:15]} Nxb3 {[%emt 0:02:14]} 42. Ne4 {[%emt 0:02:39]} Ra6 {[%emt 0:01:22]} 43. Rb7 {[%emt 0:01:03]} Rb6 {[%emt 0:01:16]} 44. Rxa7 {[%emt 0:00:06]} Kd8 {[%emt 0:00:27]} 45. Ng5 {[%emt 0:01:30]} Kc8 {[%emt 0:07:20]} 46. d7+ {[%emt 0:00:11]} Kb8 {[%emt 0:00:11]} 47. d8=Q+ {[%emt 0:00:24]} Kxa7 {[%emt 0:00:06]} 48. Ne4 {[%emt 0:01:01]} Rb4 {[%emt 0:01:03]} 49. a5 {[%emt 0:01:14]} Ka6 {[%emt 0:01:56]} 50. Qa8+ {[%emt 0:00:37]} Kb5 {[%emt 0:00:10]} 51. a6 {[%emt 0:00:30]} Nd4 {[%emt 0:00:10]} 52. Qb7+ {[%emt 0:00:14]} Kc4 {[%emt 0:00:10]} 53. Qxb4+ {[%emt 0:00:16]} cxb4 {[%emt 0:00:09]} 54. a7 {[%emt 0:00:04]} b3 {[%emt 0:00:31]} 55. Nd2+ {[%emt 0:00:18]} Kd3 {[%emt 0:00:34]} 56. Nxb3 {[%emt 0:00:06]} 1-0